[Event "Early-Titled-Tuesday-Blitz-January-30-2024"]
[Site "Chess.com"]
[Date "2024.01.30"]
[Round "6"]
[White "Skatchkov_V"]
[Black "MightyGMpretender"]
[Result "0-1"]
[WhiteElo "2614"]
[BlackElo "2826"]
[TimeControl "180+1"]
[EndTime "9:05:32 PST"]
[Termination "MightyGMpretender won by resignation"]

1. d4 {[%clk 0:02:52.6]} 1... Nf6 {[%clk 0:02:59.7]} 2. c4 {[%clk 0:02:52.9]}
2... e6 {[%clk 0:03:00.2]} 3. Nf3 {[%clk 0:02:50.3]} 3... d5 {[%clk 0:03:00.2]}
4. g3 {[%clk 0:02:51]} 4... Bb4+ {[%clk 0:02:54.6]} 5. Nbd2 {[%clk 0:02:50.3]}
5... Be7 {[%clk 0:02:55.2]} 6. Bg2 {[%clk 0:02:50.7]} 6... O-O {[%clk
0:02:54.8]} 7. O-O {[%clk 0:02:51.3]} 7... c6 {[%clk 0:02:52.3]} 8. Qc2 {[%clk
0:02:51.8]} 8... b6 {[%clk 0:02:51.2]} 9. e4 {[%clk 0:02:52.5]} 9... Bb7 {[%clk
0:02:51]} 10. Rd1 {[%clk 0:02:47.5]} 10... Na6 {[%clk 0:02:49]} 11. b3 {[%clk
0:02:44.3]} 11... Rc8 {[%clk 0:02:47.7]} 12. Bb2 {[%clk 0:02:43.5]} 12... Re8
{[%clk 0:02:42.6]} 13. Rac1 {[%clk 0:02:43.2]} 13... c5 {[%clk 0:02:20.5]} 14.
exd5 {[%clk 0:02:42.9]} 14... exd5 {[%clk 0:02:20.1]} 15. Qf5 {[%clk 0:02:43.1]}
15... dxc4 {[%clk 0:02:14.1]} 16. Nxc4 {[%clk 0:02:41.7]} 16... Be4 {[%clk
0:02:06.1]} 17. Qh3 {[%clk 0:02:15.1]} 17... Qc7 {[%clk 0:01:57.2]} 18. dxc5
{[%clk 0:01:36.7]} 18... Nxc5 {[%clk 0:01:56.1]} 19. b4 {[%clk 0:01:37]} 19...
Nd3 {[%clk 0:01:52.2]} 20. Nd6 {[%clk 0:01:26.8]} 20... Nxc1 {[%clk 0:01:42.9]}
21. Nxe8 {[%clk 0:01:17.9]} 21... Ne2+ {[%clk 0:01:41.5]} 22. Kf1 {[%clk
0:01:07.8]} 22... Rxe8 {[%clk 0:01:41]} 0-1

[Event "Early-Titled-Tuesday-Blitz-January-30-2024"]
[Site "Chess.com"]
[Date "2024.01.30"]
[Round "6"]
[White "lacafi"]
[Black "MusicCityMaster"]
[Result "1-0"]
[WhiteElo "2252"]
[BlackElo "2420"]
[TimeControl "180+1"]
[EndTime "9:05:34 PST"]
[Termination "lacafi won by resignation"]

1. d4 {[%clk 0:02:46.8]} 1... Nf6 {[%clk 0:02:59.8]} 2. Nf3 {[%clk 0:02:46.9]}
2... c5 {[%clk 0:02:59]} 3. e3 {[%clk 0:02:47]} 3... e6 {[%clk 0:02:58]} 4. Bd3
{[%clk 0:02:45.9]} 4... cxd4 {[%clk 0:02:55]} 5. exd4 {[%clk 0:02:45.8]} 5... d6
{[%clk 0:02:54.8]} 6. O-O {[%clk 0:02:45.5]} 6... Be7 {[%clk 0:02:52.8]} 7. Nbd2
{[%clk 0:02:44.1]} 7... O-O {[%clk 0:02:51.8]} 8. c3 {[%clk 0:02:44]} 8... b6
{[%clk 0:02:47.4]} 9. Ne4 {[%clk 0:02:42.9]} 9... Nbd7 {[%clk 0:02:44.6]} 10.
Qe2 {[%clk 0:02:42.3]} 10... Bb7 {[%clk 0:02:44.2]} 11. Neg5 {[%clk 0:02:40.5]}
11... g6 {[%clk 0:02:31.9]} 12. Re1 {[%clk 0:02:30.4]} 12... Bd5 {[%clk
0:02:18.7]} 13. c4 {[%clk 0:02:23.3]} 13... Bb7 {[%clk 0:02:16]} 14. Bd2 {[%clk
0:02:00.4]} 14... Re8 {[%clk 0:02:13.8]} 15. Nxf7 {[%clk 0:01:53]} 15... Kxf7
{[%clk 0:02:10.9]} 16. Qxe6+ {[%clk 0:01:42.1]} 16... Kg7 {[%clk 0:02:10.4]} 17.
Ng5 {[%clk 0:01:40.1]} 17... Nf8 {[%clk 0:02:01.8]} 18. Qf7+ {[%clk 0:01:35.6]}
18... Kh8 {[%clk 0:02:00.1]} 19. d5 {[%clk 0:01:16.8]} 19... Rc8 {[%clk
0:01:32.6]} 20. Bc3 {[%clk 0:01:07.5]} 1-0

[Event "Early-Titled-Tuesday-Blitz-January-30-2024"]
[Site "Chess.com"]
[Date "2024.01.30"]
[Round "6"]
[White "nikitadovbnya2008"]
[Black "WindWhistler11"]
[Result "0-1"]
[WhiteElo "2189"]
[BlackElo "2465"]
[TimeControl "180+1"]
[EndTime "9:05:43 PST"]
[Termination "WindWhistler11 won by resignation"]

1. d4 {[%clk 0:03:00.9]} 1... Nf6 {[%clk 0:02:55.2]} 2. c4 {[%clk 0:03:00.7]}
2... e6 {[%clk 0:02:56.1]} 3. Nc3 {[%clk 0:03:01]} 3... c5 {[%clk 0:02:57]} 4.
d5 {[%clk 0:03:00.6]} 4... exd5 {[%clk 0:02:57.9]} 5. cxd5 {[%clk 0:03:01.5]}
5... Bd6 {[%clk 0:02:58.6]} 6. e4 {[%clk 0:03:00.2]} 6... O-O {[%clk 0:02:58.7]}
7. Be2 {[%clk 0:02:56.5]} 7... Re8 {[%clk 0:02:57.9]} 8. Qc2 {[%clk 0:02:55.7]}
8... a6 {[%clk 0:02:57.8]} 9. f4 {[%clk 0:02:48.3]} 9... Qa5 {[%clk 0:02:08.9]}
10. e5 {[%clk 0:02:38.9]} 10... Nxd5 {[%clk 0:02:05.1]} 11. exd6 {[%clk
0:02:38.5]} 11... Nc6 {[%clk 0:02:03]} 12. Bd2 {[%clk 0:02:36.4]} 12... Nd4
{[%clk 0:02:00.2]} 13. Qd3 {[%clk 0:02:30.6]} 13... Nb4 {[%clk 0:01:56.7]} 14.
Qb1 {[%clk 0:02:17.7]} 14... Nbc2+ {[%clk 0:01:42.1]} 15. Kd1 {[%clk 0:02:13.2]}
15... Qb6 {[%clk 0:01:35.6]} 16. Nd5 {[%clk 0:02:05.7]} 16... Qxd6 {[%clk
0:01:34.7]} 17. Nc3 {[%clk 0:01:49.7]} 17... b5 {[%clk 0:01:09.6]} 18. a3 {[%clk
0:01:31.7]} 18... Nxa1 {[%clk 0:01:06]} 19. Qxa1 {[%clk 0:01:31.5]} 19... Nb3
{[%clk 0:01:06.1]} 0-1

[Event "Early-Titled-Tuesday-Blitz-January-30-2024"]
[Site "Chess.com"]
[Date "2024.01.30"]
[Round "6"]
[White "jamengrand"]
[Black "Talent-OF-Slovenia"]
[Result "0-1"]
[WhiteElo "2251"]
[BlackElo "2473"]
[TimeControl "180+1"]
[EndTime "9:05:46 PST"]
[Termination "Talent-OF-Slovenia won by resignation"]

1. e4 {[%clk 0:02:39.9]} 1... c5 {[%clk 0:02:58.8]} 2. Nf3 {[%clk 0:02:39.6]}
2... e6 {[%clk 0:02:56.5]} 3. d4 {[%clk 0:02:39.5]} 3... cxd4 {[%clk 0:02:55.8]}
4. Bg5 {[%clk 0:02:40.3]} 4... Be7 {[%clk 0:02:32.3]} 5. Bxe7 {[%clk 0:02:39.6]}
5... Nxe7 {[%clk 0:02:32.5]} 6. Nxd4 {[%clk 0:02:38.8]} 6... O-O {[%clk
0:02:32.2]} 7. Nc3 {[%clk 0:02:37.9]} 7... Nbc6 {[%clk 0:02:30.7]} 8. Qd2 {[%clk
0:02:27.5]} 8... a6 {[%clk 0:02:23.4]} 9. O-O-O {[%clk 0:02:26.7]} 9... b5
{[%clk 0:02:21.7]} 10. Nxc6 {[%clk 0:02:04.4]} 10... Nxc6 {[%clk 0:02:19.5]} 11.
a3 {[%clk 0:01:59.9]} 11... b4 {[%clk 0:02:13.6]} 12. axb4 {[%clk 0:01:59.5]}
12... Nxb4 {[%clk 0:02:14.5]} 13. Kb1 {[%clk 0:01:53.8]} 13... Bb7 {[%clk
0:02:12.7]} 14. f3 {[%clk 0:01:23.8]} 14... Qa5 {[%clk 0:02:11.7]} 15. Bc4
{[%clk 0:01:21]} 15... d5 {[%clk 0:01:55.9]} 16. exd5 {[%clk 0:01:17.9]} 16...
exd5 {[%clk 0:01:56.8]} 17. Nxd5 {[%clk 0:01:09.8]} 17... Bxd5 {[%clk
0:01:54.5]} 18. Bxd5 {[%clk 0:01:09.6]} 18... Rad8 {[%clk 0:01:42.5]} 19. c4
{[%clk 0:00:59.2]} 19... Qa2+ {[%clk 0:01:39.8]} 0-1

[Event "Early-Titled-Tuesday-Blitz-January-30-2024"]
[Site "Chess.com"]
[Date "2024.01.30"]
[Round "6"]
[White "GameOverBro"]
[Black "UK_23"]
[Result "1-0"]
[WhiteElo "2558"]
[BlackElo "2398"]
[TimeControl "180+1"]
[EndTime "9:05:52 PST"]
[Termination "GameOverBro won by checkmate"]

1. e4 {[%clk 0:03:00]} 1... e5 {[%clk 0:02:58]} 2. Nf3 {[%clk 0:03:00.1]} 2...
Nc6 {[%clk 0:02:55.4]} 3. Bb5 {[%clk 0:03:00.3]} 3... a6 {[%clk 0:02:55.6]} 4.
Ba4 {[%clk 0:03:00.5]} 4... Nf6 {[%clk 0:02:54.4]} 5. d4 {[%clk 0:03:00.7]} 5...
exd4 {[%clk 0:02:52.5]} 6. O-O {[%clk 0:03:00.9]} 6... Be7 {[%clk 0:02:49.3]} 7.
e5 {[%clk 0:03:01.3]} 7... Nd5 {[%clk 0:02:49.2]} 8. Nxd4 {[%clk 0:03:01.7]}
8... Nb6 {[%clk 0:02:39]} 9. Nf5 {[%clk 0:03:01.8]} 9... O-O {[%clk 0:02:38]}
10. Qg4 {[%clk 0:03:01.7]} 10... g6 {[%clk 0:02:35.4]} 11. Bxc6 {[%clk
0:03:01.9]} 11... dxc6 {[%clk 0:02:32.3]} 12. Nxe7+ {[%clk 0:03:02.3]} 12...
Qxe7 {[%clk 0:02:32.4]} 13. Qg3 {[%clk 0:03:03.2]} 13... Bf5 {[%clk 0:02:28.3]}
14. Nc3 {[%clk 0:03:02.9]} 14... Bxc2 {[%clk 0:02:23.4]} 15. Bg5 {[%clk
0:03:02.4]} 15... Qe6 {[%clk 0:02:22.9]} 16. Rfe1 {[%clk 0:03:02.3]} 16... Rfe8
{[%clk 0:02:15.8]} 17. h3 {[%clk 0:03:00.6]} 17... h5 {[%clk 0:02:13.3]} 18. Qh4
{[%clk 0:03:00.1]} 18... Nd5 {[%clk 0:01:59.7]} 19. Nxd5 {[%clk 0:02:55.5]}
19... Qxd5 {[%clk 0:01:54.4]} 20. Bf6 {[%clk 0:02:55.4]} 20... Re6 {[%clk
0:01:44.9]} 21. Qf4 {[%clk 0:02:50.2]} 21... Kh7 {[%clk 0:01:41.3]} 22. g4
{[%clk 0:02:48.7]} 22... Rg8 {[%clk 0:01:30.4]} 23. Re3 {[%clk 0:02:48.4]} 23...
c5 {[%clk 0:01:17.7]} 24. Rc1 {[%clk 0:02:46.2]} 24... Qd2 {[%clk 0:01:12.7]}
25. Rce1 {[%clk 0:02:44.9]} 25... Qd4 {[%clk 0:01:11.6]} 26. Qg5 {[%clk
0:02:42.4]} 26... c4 {[%clk 0:01:03.3]} 27. Kh2 {[%clk 0:02:42.4]} 27... Rge8
{[%clk 0:00:16.3]} 28. gxh5 {[%clk 0:02:39.3]} 28... Qxb2 {[%clk 0:00:14.8]} 29.
hxg6+ {[%clk 0:02:36.2]} 29... Bxg6 {[%clk 0:00:14]} 30. Qh4+ {[%clk 0:02:35]}
30... Kg8 {[%clk 0:00:14]} 31. Qh8# {[%clk 0:02:34.9]} 1-0

[Event "Early-Titled-Tuesday-Blitz-January-30-2024"]
[Site "Chess.com"]
[Date "2024.01.30"]
[Round "6"]
[White "dennisodessa"]
[Black "eightbyeightchess"]
[Result "1-0"]
[WhiteElo "2610"]
[BlackElo "2426"]
[TimeControl "180+1"]
[EndTime "9:06:17 PST"]
[Termination "dennisodessa won on time"]

1. d4 {[%clk 0:03:00.9]} 1... d5 {[%clk 0:02:59.9]} 2. c4 {[%clk 0:03:00.6]}
2... c6 {[%clk 0:03:00]} 3. Nf3 {[%clk 0:03:00.3]} 3... Nf6 {[%clk 0:03:00.3]}
4. Nbd2 {[%clk 0:03:00.9]} 4... e6 {[%clk 0:02:55.5]} 5. e3 {[%clk 0:03:00.3]}
5... Bd6 {[%clk 0:02:54.9]} 6. b3 {[%clk 0:03:01.2]} 6... O-O {[%clk 0:02:54.3]}
7. Bd3 {[%clk 0:03:00.8]} 7... Nbd7 {[%clk 0:02:36.5]} 8. Bb2 {[%clk 0:03:00.1]}
8... Qe7 {[%clk 0:02:34.5]} 9. Ne5 {[%clk 0:03:00.7]} 9... Bc7 {[%clk 0:02:26]}
10. f4 {[%clk 0:02:58.2]} 10... g6 {[%clk 0:02:09.1]} 11. O-O {[%clk 0:02:57.3]}
11... Ne8 {[%clk 0:02:00.9]} 12. Rf3 {[%clk 0:02:52.2]} 12... f6 {[%clk
0:01:57.9]} 13. Ng4 {[%clk 0:02:34]} 13... Qg7 {[%clk 0:01:44.2]} 14. Qe2 {[%clk
0:02:30.3]} 14... h5 {[%clk 0:01:18.4]} 15. Nf2 {[%clk 0:02:30.4]} 15... e5
{[%clk 0:00:56.9]} 16. fxe5 {[%clk 0:02:31.3]} 16... fxe5 {[%clk 0:00:54.8]} 17.
cxd5 {[%clk 0:02:28]} 17... cxd5 {[%clk 0:00:37.7]} 18. Rxf8+ {[%clk 0:02:25.8]}
18... Nxf8 {[%clk 0:00:37.4]} 19. dxe5 {[%clk 0:02:19.5]} 19... Bxe5 {[%clk
0:00:22.7]} 20. Bxe5 {[%clk 0:02:20.4]} 20... Qxe5 {[%clk 0:00:22.5]} 21. Rc1
{[%clk 0:02:21.3]} 21... Bf5 {[%clk 0:00:09.4]} 22. Nf3 {[%clk 0:02:22.2]} 22...
Qf6 {[%clk 0:00:05]} 23. Rd1 {[%clk 0:02:12.8]} 23... Rc8 {[%clk 0:00:04.2]} 24.
Qd2 {[%clk 0:02:08]} 24... Bxd3 {[%clk 0:00:02.1]} 25. Qxd3 {[%clk 0:02:08.9]}
25... Rc5 {[%clk 0:00:01.3]} 26. e4 {[%clk 0:02:08.1]} 1-0

[Event "Early-Titled-Tuesday-Blitz-January-30-2024"]
[Site "Chess.com"]
[Date "2024.01.30"]
[Round "6"]
[White "ValentinDragnev"]
[Black "ProChessWICTH"]
[Result "1-0"]
[WhiteElo "2776"]
[BlackElo "2541"]
[TimeControl "180+1"]
[EndTime "9:06:27 PST"]
[Termination "ValentinDragnev won by resignation"]

1. e4 {[%clk 0:03:00.9]} 1... c5 {[%clk 0:02:58.3]} 2. Nf3 {[%clk 0:02:59]} 2...
e6 {[%clk 0:02:57.8]} 3. d4 {[%clk 0:02:59.2]} 3... cxd4 {[%clk 0:02:58.7]} 4.
Nxd4 {[%clk 0:03:00.1]} 4... a6 {[%clk 0:02:59.4]} 5. g3 {[%clk 0:02:59.7]} 5...
Nc6 {[%clk 0:02:51.5]} 6. Bg2 {[%clk 0:03:00]} 6... Nf6 {[%clk 0:02:50.1]} 7.
O-O {[%clk 0:03:00.4]} 7... Qc7 {[%clk 0:02:43.9]} 8. c4 {[%clk 0:03:00.1]} 8...
Be7 {[%clk 0:02:38.3]} 9. Nc3 {[%clk 0:03:00.5]} 9... O-O {[%clk 0:02:35.8]} 10.
Be3 {[%clk 0:03:00.2]} 10... Ne5 {[%clk 0:02:10.3]} 11. b3 {[%clk 0:03:00.4]}
11... d6 {[%clk 0:02:06.7]} 12. Rc1 {[%clk 0:03:00]} 12... Bd7 {[%clk
0:01:24.1]} 13. Kh1 {[%clk 0:03:00.4]} 13... Rad8 {[%clk 0:01:17.7]} 14. f4
{[%clk 0:03:00.3]} 14... Ng6 {[%clk 0:01:17.4]} 15. Qe2 {[%clk 0:02:50.6]} 15...
Qb8 {[%clk 0:01:06.7]} 16. Bg1 {[%clk 0:02:39.1]} 16... Rc8 {[%clk 0:00:58.7]}
17. Nf3 {[%clk 0:02:38.9]} 17... Rfd8 {[%clk 0:00:53.1]} 18. e5 {[%clk
0:02:38.5]} 18... dxe5 {[%clk 0:00:35.8]} 19. Nxe5 {[%clk 0:02:37.4]} 19... Be8
{[%clk 0:00:25.7]} 20. Bb6 {[%clk 0:02:27.9]} 20... Rd6 {[%clk 0:00:22.3]} 21.
c5 {[%clk 0:02:24.5]} 21... Rxb6 {[%clk 0:00:11.1]} 22. cxb6 {[%clk 0:02:24.4]}
22... Nxe5 {[%clk 0:00:11.7]} 23. fxe5 {[%clk 0:02:23.9]} 23... Nd7 {[%clk
0:00:12.1]} 24. Qe4 {[%clk 0:02:17.2]} 24... Nc5 {[%clk 0:00:07.1]} 25. Qf3
{[%clk 0:02:12.7]} 25... Qxe5 {[%clk 0:00:06.5]} 26. Ne4 {[%clk 0:02:09.7]}
26... Bd7 {[%clk 0:00:02.9]} 27. Qxf7+ {[%clk 0:02:08.9]} 27... Kh8 {[%clk
0:00:01.9]} 28. Qxe7 {[%clk 0:02:09.7]} 28... Nxe4 {[%clk 0:00:02.1]} 1-0

[Event "Early-Titled-Tuesday-Blitz-January-30-2024"]
[Site "Chess.com"]
[Date "2024.01.30"]
[Round "6"]
[White "SabinaFoisor"]
[Black "Ural_bogatyr"]
[Result "0-1"]
[WhiteElo "2379"]
[BlackElo "2545"]
[TimeControl "180+1"]
[EndTime "9:06:27 PST"]
[Termination "Ural_bogatyr won by resignation"]

1. d4 {[%clk 0:03:00.9]} 1... Nf6 {[%clk 0:02:58.5]} 2. c4 {[%clk 0:02:58.6]}
2... e6 {[%clk 0:02:57.9]} 3. Nc3 {[%clk 0:02:57.7]} 3... d5 {[%clk 0:02:56.7]}
4. cxd5 {[%clk 0:02:57.1]} 4... exd5 {[%clk 0:02:56.2]} 5. Bg5 {[%clk
0:02:57.2]} 5... Be7 {[%clk 0:02:56.2]} 6. e3 {[%clk 0:02:57.2]} 6... O-O {[%clk
0:02:56.8]} 7. Bd3 {[%clk 0:02:57.5]} 7... h6 {[%clk 0:02:57.3]} 8. Bh4 {[%clk
0:02:57.4]} 8... Bg4 {[%clk 0:02:57.6]} 9. Qc2 {[%clk 0:02:54.3]} 9... c5 {[%clk
0:02:56.4]} 10. Nge2 {[%clk 0:02:53.8]} 10... Nc6 {[%clk 0:02:56.3]} 11. a3
{[%clk 0:02:51.8]} 11... Qd7 {[%clk 0:02:47.8]} 12. dxc5 {[%clk 0:02:45.7]}
12... d4 {[%clk 0:02:47.8]} 13. exd4 {[%clk 0:02:21.6]} 13... Nxd4 {[%clk
0:02:44.6]} 14. Nxd4 {[%clk 0:02:18.7]} 14... Qxd4 {[%clk 0:02:45.5]} 15. O-O
{[%clk 0:02:17.3]} 15... Qxc5 {[%clk 0:02:41]} 16. h3 {[%clk 0:02:14.2]} 16...
Be6 {[%clk 0:02:40]} 17. Rac1 {[%clk 0:02:04.4]} 17... Rac8 {[%clk 0:02:38.6]}
18. Qe2 {[%clk 0:01:56.6]} 18... Qa5 {[%clk 0:02:32]} 19. Ne4 {[%clk 0:01:47.6]}
19... Qe5 {[%clk 0:02:17.4]} 20. Nxf6+ {[%clk 0:01:20.1]} 20... Bxf6 {[%clk
0:02:16.9]} 21. Bxf6 {[%clk 0:01:20.4]} 21... Qxf6 {[%clk 0:02:17.8]} 22. Qe4
{[%clk 0:01:20.7]} 22... g6 {[%clk 0:02:09.9]} 23. Qxb7 {[%clk 0:01:19.4]} 23...
Rb8 {[%clk 0:02:07.6]} 24. Qxa7 {[%clk 0:01:19.5]} 24... Rxb2 {[%clk 0:02:07.3]}
25. Qe3 {[%clk 0:01:18.9]} 25... Rb3 {[%clk 0:02:03.1]} 26. Rfd1 {[%clk
0:01:07.8]} 26... Kg7 {[%clk 0:02:01.6]} 27. Qc5 {[%clk 0:00:57.1]} 27... Rd8
{[%clk 0:01:56.1]} 28. Be2 {[%clk 0:00:51.1]} 28... Ra8 {[%clk 0:01:50.2]} 29.
Qd4 {[%clk 0:00:48.4]} 29... Rbxa3 {[%clk 0:01:46.3]} 30. Qxf6+ {[%clk
0:00:47.4]} 30... Kxf6 {[%clk 0:01:47.2]} 31. Bf3 {[%clk 0:00:45.4]} 31... R8a5
{[%clk 0:01:42.3]} 32. h4 {[%clk 0:00:44.6]} 32... h5 {[%clk 0:01:41.7]} 33. g3
{[%clk 0:00:44.6]} 33... Rxf3 {[%clk 0:01:41.1]} 0-1

[Event "Early-Titled-Tuesday-Blitz-January-30-2024"]
[Site "Chess.com"]
[Date "2024.01.30"]
[Round "6"]
[White "RobertJFischer71"]
[Black "Massakru"]
[Result "1-0"]
[WhiteElo "2559"]
[BlackElo "2401"]
[TimeControl "180+1"]
[EndTime "9:06:51 PST"]
[Termination "RobertJFischer71 won by resignation"]

1. e4 {[%clk 0:03:00.9]} 1... e5 {[%clk 0:02:59.7]} 2. Nf3 {[%clk 0:03:01.5]}
2... Nc6 {[%clk 0:02:59.6]} 3. Bc4 {[%clk 0:03:01.8]} 3... Nf6 {[%clk
0:02:59.7]} 4. O-O {[%clk 0:03:01.6]} 4... Bc5 {[%clk 0:02:49.7]} 5. d4 {[%clk
0:03:01]} 5... Bxd4 {[%clk 0:02:47.7]} 6. Nxd4 {[%clk 0:03:01.2]} 6... Nxd4
{[%clk 0:02:48.2]} 7. Bg5 {[%clk 0:03:01.5]} 7... d6 {[%clk 0:02:47.7]} 8. f4
{[%clk 0:03:01.3]} 8... h6 {[%clk 0:02:48]} 9. Bh4 {[%clk 0:03:01.1]} 9... Ne6
{[%clk 0:02:40.1]} 10. fxe5 {[%clk 0:03:00.6]} 10... dxe5 {[%clk 0:02:35.2]} 11.
Qxd8+ {[%clk 0:03:00.4]} 11... Nxd8 {[%clk 0:02:35.4]} 12. Bxf6 {[%clk
0:02:57.7]} 12... gxf6 {[%clk 0:02:35.6]} 13. Nc3 {[%clk 0:02:51.4]} 13... c6
{[%clk 0:02:33.6]} 14. Rxf6 {[%clk 0:02:46.8]} 14... Be6 {[%clk 0:02:33.8]} 15.
Bxe6 {[%clk 0:02:44.5]} 15... Nxe6 {[%clk 0:02:13.4]} 16. Rf5 {[%clk 0:02:44.8]}
16... O-O-O {[%clk 0:02:12.9]} 17. Rxf7 {[%clk 0:02:29.4]} 17... Rd2 {[%clk
0:02:11.8]} 18. Rf2 {[%clk 0:02:28.4]} 18... Rhd8 {[%clk 0:02:08.3]} 19. Raf1
{[%clk 0:02:26.1]} 19... b5 {[%clk 0:02:02.8]} 20. Rxd2 {[%clk 0:02:17.5]} 20...
Rxd2 {[%clk 0:02:03.7]} 21. Rf2 {[%clk 0:02:17.9]} 21... Rxf2 {[%clk 0:01:58.7]}
22. Kxf2 {[%clk 0:02:18.8]} 22... Nd4 {[%clk 0:01:59.3]} 23. Kg3 {[%clk
0:02:08.4]} 23... Nxc2 {[%clk 0:01:59.1]} 24. Kg4 {[%clk 0:02:08.8]} 24... Ne3+
{[%clk 0:01:54.8]} 25. Kh5 {[%clk 0:02:04.6]} 25... Nxg2 {[%clk 0:01:54.8]} 26.
Kxh6 {[%clk 0:02:05.2]} 26... a6 {[%clk 0:01:53.7]} 27. Kg5 {[%clk 0:02:04.3]}
27... Kd7 {[%clk 0:01:53.1]} 28. h4 {[%clk 0:02:02.2]} 28... Nf4 {[%clk
0:01:43.8]} 29. h5 {[%clk 0:01:59.4]} 29... Kd6 {[%clk 0:01:39.6]} 30. h6 {[%clk
0:01:58.8]} 30... Ne6+ {[%clk 0:01:34.6]} 31. Kf6 {[%clk 0:01:52.1]} 31... Nf8
{[%clk 0:01:34.6]} 32. b4 {[%clk 0:01:38.2]} 32... c5 {[%clk 0:01:30.6]} 33. a3
{[%clk 0:01:38.3]} 33... cxb4 {[%clk 0:01:26.8]} 34. axb4 {[%clk 0:01:39.2]}
34... Nh7+ {[%clk 0:01:20]} 35. Kg6 {[%clk 0:01:35]} 35... Nf8+ {[%clk
0:01:17.6]} 36. Kf7 {[%clk 0:01:32.6]} 36... Ne6 {[%clk 0:01:13.1]} 37. h7
{[%clk 0:01:31.5]} 37... Ng5+ {[%clk 0:01:12.8]} 38. Kg6 {[%clk 0:01:32]} 38...
Nxh7 {[%clk 0:01:12.5]} 39. Kxh7 {[%clk 0:01:32.9]} 39... a5 {[%clk 0:01:00.7]}
40. bxa5 {[%clk 0:01:32.4]} 40... b4 {[%clk 0:01:00.2]} 41. Na4 {[%clk
0:01:32.9]} 41... Kc6 {[%clk 0:00:59.5]} 42. a6 {[%clk 0:01:33]} 42... b3 {[%clk
0:00:59.4]} 43. Kg6 {[%clk 0:01:32.7]} 43... b2 {[%clk 0:00:52.2]} 44. Nxb2
{[%clk 0:01:32.1]} 44... Kb6 {[%clk 0:00:52.6]} 45. Kf5 {[%clk 0:01:32.6]} 45...
Kxa6 {[%clk 0:00:52.9]} 46. Kxe5 {[%clk 0:01:33.5]} 46... Kb5 {[%clk 0:00:53.4]}
47. Kd5 {[%clk 0:01:34.4]} 1-0

[Event "Early-Titled-Tuesday-Blitz-January-30-2024"]
[Site "Chess.com"]
[Date "2024.01.30"]
[Round "6"]
[White "vasblesk"]
[Black "Casper"]
[Result "1-0"]
[WhiteElo "2759"]
[BlackElo "2536"]
[TimeControl "180+1"]
[EndTime "9:06:55 PST"]
[Termination "vasblesk won by resignation"]

1. d4 {[%clk 0:02:56]} 1... d6 {[%clk 0:03:00.2]} 2. Nf3 {[%clk 0:02:55.9]} 2...
g6 {[%clk 0:03:01.1]} 3. g3 {[%clk 0:02:56.5]} 3... Bg7 {[%clk 0:03:01.8]} 4.
Bg2 {[%clk 0:02:57.4]} 4... Nf6 {[%clk 0:03:02.3]} 5. O-O {[%clk 0:02:58.3]}
5... Bd7 {[%clk 0:03:02.8]} 6. c4 {[%clk 0:02:59.2]} 6... Qc8 {[%clk 0:03:03.5]}
7. Nc3 {[%clk 0:03:00.1]} 7... Bh3 {[%clk 0:03:03.9]} 8. e4 {[%clk 0:03:00.2]}
8... h5 {[%clk 0:03:04.4]} 9. Bg5 {[%clk 0:02:59.3]} 9... Nc6 {[%clk 0:03:02.3]}
10. Nd5 {[%clk 0:02:53.6]} 10... Bxg2 {[%clk 0:02:52.1]} 11. Kxg2 {[%clk
0:02:52.6]} 11... Nxe4 {[%clk 0:02:50.6]} 12. Be3 {[%clk 0:02:22.9]} 12... h4
{[%clk 0:02:50.8]} 13. Nxh4 {[%clk 0:02:17]} 13... g5 {[%clk 0:02:46.5]} 14. Qf3
{[%clk 0:02:15.5]} 14... gxh4 {[%clk 0:02:41.1]} 15. Qxe4 {[%clk 0:02:14.5]}
15... hxg3 {[%clk 0:02:41.2]} 16. hxg3 {[%clk 0:02:14.5]} 16... Qh3+ {[%clk
0:02:36]} 17. Kf3 {[%clk 0:02:13.9]} 17... Qh5+ {[%clk 0:02:36.7]} 18. Kg2
{[%clk 0:01:57.3]} 18... Qh3+ {[%clk 0:02:28.4]} 19. Kf3 {[%clk 0:01:55.8]}
19... Qh5+ {[%clk 0:02:28.8]} 20. g4 {[%clk 0:01:54]} 20... Qh3+ {[%clk
0:01:29.1]} 21. Ke2 {[%clk 0:01:52.5]} 21... f5 {[%clk 0:01:16.5]} 22. Qxf5
{[%clk 0:01:04.8]} 22... e6 {[%clk 0:00:52.5]} 23. Qxe6+ {[%clk 0:01:00.7]}
23... Kf8 {[%clk 0:00:52.6]} 24. Nf4 {[%clk 0:00:47.2]} 1-0

[Event "Early-Titled-Tuesday-Blitz-January-30-2024"]
[Site "Chess.com"]
[Date "2024.01.30"]
[Round "6"]
[White "LaPiToB"]
[Black "HelvertHernandez"]
[Result "1-0"]
[WhiteElo "2285"]
[BlackElo "1879"]
[TimeControl "180+1"]
[EndTime "9:06:55 PST"]
[Termination "LaPiToB won on time"]

1. c4 {[%clk 0:03:00.9]} 1... Nf6 {[%clk 0:02:57.4]} 2. Nc3 {[%clk 0:02:59.5]}
2... g6 {[%clk 0:02:56.7]} 3. g3 {[%clk 0:02:57.9]} 3... Bg7 {[%clk 0:02:55.5]}
4. Bg2 {[%clk 0:02:58.6]} 4... c6 {[%clk 0:02:55.2]} 5. e4 {[%clk 0:02:59.2]}
5... e5 {[%clk 0:02:49.5]} 6. Nge2 {[%clk 0:02:59]} 6... O-O {[%clk 0:02:47.8]}
7. O-O {[%clk 0:02:57.5]} 7... d6 {[%clk 0:02:43.9]} 8. d3 {[%clk 0:02:57.5]}
8... Be6 {[%clk 0:02:41]} 9. h3 {[%clk 0:02:57.2]} 9... d5 {[%clk 0:02:26.4]}
10. exd5 {[%clk 0:02:22.9]} 10... cxd5 {[%clk 0:02:24.6]} 11. Bg5 {[%clk
0:02:23.3]} 11... dxc4 {[%clk 0:01:56.6]} 12. dxc4 {[%clk 0:02:04.1]} 12... Nc6
{[%clk 0:01:50]} 13. Nd5 {[%clk 0:02:01.7]} 13... Re8 {[%clk 0:01:21.5]} 14.
Nec3 {[%clk 0:01:57.7]} 14... h6 {[%clk 0:01:18]} 15. Nxf6+ {[%clk 0:01:52.9]}
15... Bxf6 {[%clk 0:01:17.8]} 16. Bxh6 {[%clk 0:01:53.1]} 16... Bxc4 {[%clk
0:01:17.5]} 17. Re1 {[%clk 0:01:51.4]} 17... Rc8 {[%clk 0:01:12.3]} 18. Qf3
{[%clk 0:01:42.7]} 18... Nd4 {[%clk 0:00:45.5]} 19. Qxb7 {[%clk 0:01:38.1]}
19... Qa5 {[%clk 0:00:23.9]} 20. Ne4 {[%clk 0:01:32.1]} 20... Bg7 {[%clk
0:00:19.2]} 21. Bxg7 {[%clk 0:01:31.5]} 21... Kxg7 {[%clk 0:00:19.5]} 22. Nd6
{[%clk 0:01:23.6]} 22... Rc7 {[%clk 0:00:16.4]} 23. Nxe8+ {[%clk 0:01:23.2]} 1-0